Workbook

Sheet 0_Anagrafica Gara
B2: DATI GENERALI DI COMMESSA E PARAMETRI REVISIONE
B4: Opera / Oggetto: | D4: INSERIRE TITOLO
B5: CUP: | D5: INSERISCI CUP
B6: CIG: | D6: INSERISCI CIG
B7: Mese Presentazione Offerta (Gara): | D7: 2025-01
B8: Soglia Alea / Franchigia: | D8: 0.03
B9: Quota di Compensazione (90%): | D9: 0.9
B10: INDICE SINTETICO DI PARTENZA Ismo: | D10: 100
D14: celle da non toccare automatiche
D15: celle da compilare a cura del Progettista/DL
D16: 5_dati scaricati da istat | E16: foglio da aggiornare ad ogni sal

Sheet 1_Scomposizione TOL
A2: SCOMPOSIZIONE DELL'OPERA IN TIPOLOGIE OMOGENEE (TOL) | C2: mese gara | D2: 2025-01
A4: Codice TOL | B4: Descrizione Tipologia Omogenea | C4: Importo da Computo (€) | D4: Peso % (Wi) | E4: Indice ISTAT Gara | F4: Ismo Convenzionale
A5: TOL-01 | B5: Opere edili su edifici e manufatti non soggetti a tutela dei beni culturali | C5: 20000 | D5: =C5/$C$25 -> 0.05865102639 | E5: =VLOOKUP($D$2, '2_DB Indici ISTAT'!$A$5:$U$500, MATCH(A5, '2_DB Indici ISTAT'!$A$4:$U$4, 0), FALSE) -> 101.4 | F5: 100
A6: TOL-02 | B6: Opere edili su edifici e manufatti soggetti a tutela dei beni culturali | C6: 25000 | D6: 0.07331378299 | E6: =VLOOKUP($D$2, '2_DB Indici ISTAT'!$A$5:$U$500, MATCH(A6, '2_DB Indici ISTAT'!$A$4:$U$4, 0), FALSE) -> 102 | F6: 100
A7: TOL-03 | B7: Scavi archeologici, restauri specialistici di beni del patrimonio culturale e di interesse storico | C7: 50000 | D7: 0.146627566 | E7: =VLOOKUP($D$2, '2_DB Indici ISTAT'!$A$5:$U$500, MATCH(A7, '2_DB Indici ISTAT'!$A$4:$U$4, 0), FALSE) -> 102.1 | F7: 100
A8: TOL-04 | B8: Lavori di movimento terra, demolizioni, opere di protezione ambientale, ingegneria naturalistica e opere a verde | C8: 5000 | D8: 0.0146627566 | E8: =VLOOKUP($D$2, '2_DB Indici ISTAT'!$A$5:$U$500, MATCH(A8, '2_DB Indici ISTAT'!$A$4:$U$4, 0), FALSE) -> 99.6 | F8: 100
A9: TOL-05 | B9: Pavimentazioni in conglomerato bituminoso | C9: 25000 | D9: 0.07331378299 | E9: =VLOOKUP($D$2, '2_DB Indici ISTAT'!$A$5:$U$500, MATCH(A9, '2_DB Indici ISTAT'!$A$4:$U$4, 0), FALSE) -> 100 | F9: 100
A10: TOL-06 | B10: Strutture, opere di ingegneria e manufatti in acciaio | C10: 12000 | D10: 0.03519061584 | E10: =VLOOKUP($D$2, '2_DB Indici ISTAT'!$A$5:$U$500, MATCH(A10, '2_DB Indici ISTAT'!$A$4:$U$4, 0), FALSE) -> 86.8 | F10: 100
A11: TOL-07 | B11: Strutture, opere di ingegneria e manufatti in calcestruzzo armato, anche prefabbricato | C11: 5000 | D11: 0.0146627566 | E11: =VLOOKUP($D$2, '2_DB Indici ISTAT'!$A$5:$U$500, MATCH(A11, '2_DB Indici ISTAT'!$A$4:$U$4, 0), FALSE) -> 95 | F11: 100
A12: TOL-08 | B12: Strutture, opere di ingegneria e manufatti in legno | C12: 5000 | D12: 0.0146627566 | E12: =VLOOKUP($D$2, '2_DB Indici ISTAT'!$A$5:$U$500, MATCH(A12, '2_DB Indici ISTAT'!$A$4:$U$4, 0), FALSE) -> 102.9 | F12: 100
A13: TOL-09 | B13: Gallerie e opere d'arte nel sottosuolo realizzate con metodo tradizionale | C13: 5000 | D13: 0.0146627566 | E13: =VLOOKUP($D$2, '2_DB Indici ISTAT'!$A$5:$U$500, MATCH(A13, '2_DB Indici ISTAT'!$A$4:$U$4, 0), FALSE) -> 92.7 | F13: 100
A14: TOL-10 | B14: Gallerie e opere d'arte nel sottosuolo realizzate con metodo meccanizzato | C14: 5000 | D14: 0.0146627566 | E14: =VLOOKUP($D$2, '2_DB Indici ISTAT'!$A$5:$U$500, MATCH(A14, '2_DB Indici ISTAT'!$A$4:$U$4, 0), FALSE) -> 94.1 | F14: 100
A15: TOL-11 | B15: Acquedotti, gasdotti, opere di irrigazione e fognature | C15: 5000 | D15: 0.0146627566 | E15: =VLOOKUP($D$2, '2_DB Indici ISTAT'!$A$5:$U$500, MATCH(A15, '2_DB Indici ISTAT'!$A$4:$U$4, 0), FALSE) -> 100 | F15: 100
A16: TOL-12 | B16: Opere marittime e lavori di dragaggio, opere fluviali e di difesa del suolo | C16: 78000 | D16: 0.2287390029 | E16: =VLOOKUP($D$2, '2_DB Indici ISTAT'!$A$5:$U$500, MATCH(A16, '2_DB Indici ISTAT'!$A$4:$U$4, 0), FALSE) -> 91.6 | F16: 100
A17: TOL-13 | B17: Impianti per la produzione, trasformazione e distribuzione di energia elettrica in alta e media tensione per la trazione elettrica e l'illuminazione pubblica | C17: 1500 | D17: 0.004398826979 | E17: =VLOOKUP($D$2, '2_DB Indici ISTAT'!$A$5:$U$500, MATCH(A17, '2_DB Indici ISTAT'!$A$4:$U$4, 0), FALSE) -> 105.7 | F17: 100
A18: TOL-14 | B18: Impianti elettrici, tecnologici, radiotelefonici e antintrusione | C18: 10000 | D18: 0.0293255132 | E18: =VLOOKUP($D$2, '2_DB Indici ISTAT'!$A$5:$U$500, MATCH(A18, '2_DB Indici ISTAT'!$A$4:$U$4, 0), FALSE) -> 104.4 | F18: 100
A19: TOL-15 | B19: Impianti meccanici, termici, di condizionamento, idrico sanitari e trasportatori | C19: 15000 | D19: 0.04398826979 | E19: =VLOOKUP($D$2, '2_DB Indici ISTAT'!$A$5:$U$500, MATCH(A19, '2_DB Indici ISTAT'!$A$4:$U$4, 0), FALSE) -> 104.7 | F19: 100
A20: TOL-16 | B20: Impianti di potabilizzazione e depurazione | C20: 15000 | D20: 0.04398826979 | E20: =VLOOKUP($D$2, '2_DB Indici ISTAT'!$A$5:$U$500, MATCH(A20, '2_DB Indici ISTAT'!$A$4:$U$4, 0), FALSE) -> 103.2 | F20: 100
A21: TOL-17 | B21: Impianti di segnalamento, sicurezza del traffico e telecomunicazioni | C21: 12000 | D21: 0.03519061584 | E21: =VLOOKUP($D$2, '2_DB Indici ISTAT'!$A$5:$U$500, MATCH(A21, '2_DB Indici ISTAT'!$A$4:$U$4, 0), FALSE) -> 106.7 | F21: 100
A22: TOL-18 | B22: Armamento ferroviario | C22: 35000 | D22: 0.1026392962 | E22: =VLOOKUP($D$2, '2_DB Indici ISTAT'!$A$5:$U$500, MATCH(A22, '2_DB Indici ISTAT'!$A$4:$U$4, 0), FALSE) -> 100.4 | F22: 100
A23: TOL-19 | B23: Opere di fondazione speciale, indagini geologiche e geotecniche | C23: 500 | D23: 0.00146627566 | E23: =VLOOKUP($D$2, '2_DB Indici ISTAT'!$A$5:$U$500, MATCH(A23, '2_DB Indici ISTAT'!$A$4:$U$4, 0), FALSE) -> 96.6 | F23: 100
A24: TOL-20 | B24: Conferimento rifiuti a impianto di smaltimento o recupero | C24: 12000 | D24: 0.03519061584 | E24: =VLOOKUP($D$2, '2_DB Indici ISTAT'!$A$5:$U$500, MATCH(A24, '2_DB Indici ISTAT'!$A$4:$U$4, 0), FALSE) -> 106.7 | F24: 100
B25: TOTALE DI CONTRATTO | C25: =SUM(C5:C24) -> 341000 | D25: =SUM(D5:D24) -> 1

Sheet 2_DB Indici ISTAT
A2: MATRICE STORICA INDICI ISTAT (VALORI STORICI REALI)
A4: Mese | B4: TOL-01 | C4: TOL-02 | D4: TOL-03 | E4: TOL-04 | F4: TOL-05 | G4: TOL-06 | H4: TOL-07 | I4: TOL-08 | J4: TOL-09 | K4: TOL-10 | L4: TOL-11 | M4: TOL-12 | N4: TOL-13 | O4: TOL-14 | P4: TOL-15 | Q4: TOL-16 | R4: TOL-17 | S4: TOL-18 | T4: TOL-19 | U4: TOL-20
A5: 2022-01 | B5: 90.9 | C5: 93.2 | D5: 96.2 | E5: 91.3 | F5: 88.6 | G5: 92.9 | H5: 91 | I5: 95.2 | J5: 91 | K5: 92.1 | L5: 92 | M5: 89.1 | N5: 95.2 | O5: 96.4 | P5: 95.8 | Q5: 93.9 | R5: 97.3 | S5: 91.9 | T5: 90.3 | U5: 99.5
A6: 2022-02 | B6: 91.6 | C6: 93.4 | D6: 96.1 | E6: 92.8 | F6: 89.3 | G6: 93.8 | H6: 91.9 | I6: 95.6 | J6: 91.5 | K6: 91.7 | L6: 93.3 | M6: 90.7 | N6: 96.2 | O6: 97.1 | P6: 95.9 | Q6: 94.8 | R6: 97.8 | S6: 92.8 | T6: 91.5 | U6: 99.5
A7: 2022-03 | B7: 96.7 | C7: 98.1 | D7: 99.5 | E7: 100 | F7: 99.3 | G7: 109.6 | H7: 100.2 | I7: 98.9 | J7: 100.1 | K7: 99.7 | L7: 99 | M7: 103.2 | N7: 99.4 | O7: 99 | P7: 97.9 | Q7: 98 | R7: 99.5 | S7: 100.4 | T7: 98.5 | U7: 99.5
A8: 2022-04 | B8: 98 | C8: 99.3 | D8: 99.6 | E8: 99.8 | F8: 100.4 | G8: 115.1 | H8: 104 | I8: 99.8 | J8: 103.5 | K8: 102 | L8: 100.2 | M8: 107.3 | N8: 99.5 | O8: 99 | P8: 98.7 | Q8: 97.9 | R8: 100 | S8: 99.7 | T8: 99.7 | U8: 99.8
A9: 2022-05 | B9: 99.1 | C9: 99.9 | D9: 99.7 | E9: 100.8 | F9: 100.5 | G9: 108.5 | H9: 104 | I9: 100.2 | J9: 103.8 | K9: 101.5 | L9: 100.8 | M9: 106.6 | N9: 99.8 | O9: 99.3 | P9: 99.5 | Q9: 98.4 | R9: 100.5 | S9: 100.2 | T9: 102 | U9: 99.8
A10: 2022-06 | B10: 100.2 | C10: 100.3 | D10: 100.4 | E10: 103.3 | F10: 103 | G10: 102.5 | H10: 101.4 | I10: 100.1 | J10: 102 | K10: 100 | L10: 101.6 | M10: 105.8 | N10: 101.4 | O10: 100.4 | P10: 100.6 | Q10: 100.1 | R10: 100.6 | S10: 104.1 | T10: 101.9 | U10: 99.8
A11: 2022-07 | B11: 102.5 | C11: 101.5 | D11: 101.6 | E11: 102.9 | F11: 104.2 | G11: 100.4 | H11: 100.9 | I11: 101.3 | J11: 102.2 | K11: 102.3 | L11: 102.3 | M11: 102.4 | N11: 101.8 | O11: 101.6 | P11: 101.4 | Q11: 102.4 | R11: 100.9 | S11: 103.5 | T11: 103.5 | U11: 100.2
A12: 2022-08 | B12: 104.6 | C12: 102.7 | D12: 102 | E12: 101.4 | F12: 104.2 | G12: 101.1 | H12: 102.1 | I12: 101.4 | J12: 103 | K12: 105.2 | L12: 102.9 | M12: 100 | N12: 101.6 | O12: 102.8 | P12: 102.8 | Q12: 103.7 | R12: 100.3 | S12: 101.2 | T12: 103.8 | U12: 100.2
A13: 2022-09 | B13: 104.7 | C13: 103.3 | D13: 101.6 | E13: 101.6 | F13: 103.2 | G13: 99.8 | H13: 103.2 | I13: 101.7 | J13: 103.2 | K13: 104.8 | L13: 102.8 | M13: 100.7 | N13: 101.7 | O13: 102.5 | P13: 102.6 | Q13: 103.7 | R13: 101.2 | S13: 101.3 | T13: 103.2 | U13: 100.2
A14: 2022-10 | B14: 103.2 | C14: 102.8 | D14: 101.2 | E14: 103.3 | F14: 103.4 | G14: 93.9 | H14: 101.2 | I14: 102.4 | J14: 100.8 | K14: 100.1 | L14: 102.1 | M14: 100.6 | N14: 101.4 | O14: 100 | P14: 101.3 | Q14: 102.2 | R14: 100.7 | S14: 103.1 | T14: 101.8 | U14: 100.5
A15: 2022-11 | B15: 103.8 | C15: 102.6 | D15: 101.2 | E15: 102.9 | F15: 102.2 | G15: 91.3 | H15: 100.4 | I15: 102.1 | J15: 99.9 | K15: 99.8 | L15: 102 | M15: 98.8 | N15: 101.3 | O15: 100.5 | P15: 101.6 | Q15: 102.4 | R15: 100.4 | S15: 102.5 | T15: 102.4 | U15: 100.5
A16: 2022-12 | B16: 104.7 | C16: 102.9 | D16: 101.1 | E16: 100 | F16: 101.7 | G16: 91 | H16: 99.8 | I16: 101.3 | J16: 99 | K16: 100.6 | L16: 101.2 | M16: 94.8 | N16: 100.8 | O16: 101.5 | P16: 101.9 | Q16: 102.5 | R16: 100.8 | S16: 99.3 | T16: 101.3 | U16: 100.5
A17: 2023-01 | B17: 103.1 | C17: 102.6 | D17: 100.8 | E17: 100.5 | F17: 102 | G17: 91.3 | H17: 99.6 | I17: 100.3 | J17: 97.6 | K17: 98.4 | L17: 101 | M17: 95.9 | N17: 101.3 | O17: 101.1 | P17: 101.3 | Q17: 101.6 | R17: 101.2 | S17: 100.3 | T17: 100.4 | U17: 102.7
A18: 2023-02 | B18: 102.7 | C18: 102.4 | D18: 100.8 | E18: 100.1 | F18: 101 | G18: 92.6 | H18: 98.5 | I18: 100.2 | J18: 96.4 | K18: 97.1 | L18: 100.6 | M18: 95.5 | N18: 101.5 | O18: 100.6 | P18: 100.7 | Q18: 101.1 | R18: 102 | S18: 99.6 | T18: 99.6 | U18: 102.7
A19: 2023-03 | B19: 102 | C19: 102.2 | D19: 100.7 | E19: 99.5 | F19: 100.3 | G19: 93.1 | H19: 97.5 | I19: 100.5 | J19: 95.5 | K19: 96 | L19: 99.8 | M19: 94.8 | N19: 101.2 | O19: 101 | P19: 100.8 | Q19: 100.7 | R19: 102.3 | S19: 98.9 | T19: 98.5 | U19: 102.7
A20: 2023-04 | B20: 101.8 | C20: 102 | D20: 100.5 | E20: 98.7 | F20: 99.5 | G20: 93.9 | H20: 97.7 | I20: 100.5 | J20: 95.4 | K20: 95.9 | L20: 99.5 | M20: 94.6 | N20: 101.6 | O20: 101.9 | P20: 101 | Q20: 100.8 | R20: 101.8 | S20: 98.4 | T20: 98.2 | U20: 102.5
A21: 2023-05 | B21: 100.8 | C21: 101.4 | D21: 100.1 | E21: 97.1 | F21: 98.1 | G21: 90.8 | H21: 96 | I21: 99.9 | J21: 93.7 | K21: 94 | L21: 98.3 | M21: 92.9 | N21: 100.9 | O21: 100.6 | P21: 100.8 | Q21: 100.6 | R21: 101.5 | S21: 96.7 | T21: 96.5 | U21: 102.5
A22: 2023-06 | B22: 100.3 | C22: 101.1 | D22: 100 | E22: 97.2 | F22: 98.1 | G22: 88.2 | H22: 95.3 | I22: 99.8 | J22: 92.9 | K22: 93.5 | L22: 98.4 | M22: 92.3 | N22: 102.6 | O22: 102.2 | P22: 102.7 | Q22: 102.5 | R22: 103.4 | S22: 96.7 | T22: 96.2 | U22: 102.5
A23: 2023-07 | B23: 100.9 | C23: 102 | D23: 101.4 | E23: 98.1 | F23: 99.2 | G23: 88 | H23: 95.4 | I23: 100.2 | J23: 92.9 | K23: 93.4 | L23: 98.8 | M23: 91.9 | N23: 103.4 | O23: 102.1 | P23: 102.9 | Q23: 101.8 | R23: 103.1 | S23: 97.7 | T23: 96.5 | U23: 102.4
A24: 2023-08 | B24: 100.9 | C24: 102 | D24: 101.6 | E24: 100.1 | F24: 99.2 | G24: 88 | H24: 95.5 | I24: 100.2 | J24: 93.1 | K24: 93.6 | L24: 99.4 | M24: 93.4 | N24: 104 | O24: 101.9 | P24: 102.7 | Q24: 102.6 | R24: 103.2 | S24: 100.2 | T24: 97.4 | U24: 102.4
A25: 2023-09 | B25: 100.7 | C25: 102 | D25: 101.7 | E25: 101 | F25: 99.8 | G25: 87 | H25: 94.6 | I25: 100.6 | J25: 92.4 | K25: 92.6 | L25: 99.4 | M25: 93.7 | N25: 104.1 | O25: 102.2 | P25: 102.2 | Q25: 101.2 | R25: 103.2 | S25: 101.1 | T25: 97.5 | U25: 102.4
A26: 2023-10 | B26: 100.5 | C26: 101.7 | D26: 101.8 | E26: 100.6 | F26: 100.4 | G26: 85.5 | H26: 93.7 | I26: 100.7 | J26: 91.8 | K26: 92.5 | L26: 99.1 | M26: 92.8 | N26: 104 | O26: 103 | P26: 103 | Q26: 101.8 | R26: 102.9 | S26: 101.1 | T26: 97 | U26: 102.6
A27: 2023-11 | B27: 100.1 | C27: 101.4 | D27: 101.6 | E27: 99.4 | F27: 99.6 | G27: 86.3 | H27: 93.7 | I27: 100.1 | J27: 91.5 | K27: 92.5 | L27: 98.7 | M27: 91.9 | N27: 103.6 | O27: 102.4 | P27: 102.5 | Q27: 101 | R27: 102.6 | S27: 99.8 | T27: 96 | U27: 102.6
A28: 2023-12 | B28: 99.9 | C28: 101.3 | D28: 101.5 | E28: 98.5 | F28: 98.9 | G28: 87.1 | H28: 94.7 | I28: 99.9 | J28: 92.1 | K28: 93.1 | L28: 98.6 | M28: 91.5 | N28: 103.2 | O28: 103 | P28: 101.8 | Q28: 99.8 | R28: 102.6 | S28: 98.6 | T28: 95.9 | U28: 102.6
A29: 2024-01 | B29: 99.7 | C29: 101.2 | D29: 101.1 | E29: 98.6 | F29: 98.4 | G29: 88.5 | H29: 94.5 | I29: 100.3 | J29: 91.6 | K29: 91.8 | L29: 98.6 | M29: 92.1 | N29: 103.6 | O29: 102.5 | P29: 101.9 | Q29: 99.2 | R29: 102.4 | S29: 98.9 | T29: 95.6 | U29: 104.2
A30: 2024-02 | B30: 99.3 | C30: 101 | D30: 101.3 | E30: 100.1 | F30: 98.8 | G30: 88.1 | H30: 94.4 | I30: 100.7 | J30: 91.5 | K30: 91.7 | L30: 98.7 | M30: 92.9 | N30: 103.7 | O30: 101.9 | P30: 101.7 | Q30: 99.3 | R30: 102.9 | S30: 100.9 | T30: 95.9 | U30: 104.2
A31: 2024-03 | B31: 99.4 | C31: 100.9 | D31: 101.6 | E31: 100.3 | F31: 98.9 | G31: 86.4 | H31: 93.7 | I31: 100.9 | J31: 91.2 | K31: 92 | L31: 98.6 | M31: 92.7 | N31: 103.8 | O31: 102.1 | P31: 101.4 | Q31: 100 | R31: 102.7 | S31: 101.4 | T31: 95.8 | U31: 104.2
A32: 2024-04 | B32: 99 | C32: 100.8 | D32: 101.2 | E32: 99.8 | F32: 98.9 | G32: 85 | H32: 93.5 | I32: 101.3 | J32: 90.7 | K32: 90.9 | L32: 98.6 | M32: 92.3 | N32: 103.9 | O32: 101.9 | P32: 101.7 | Q32: 100.1 | R32: 103.3 | S32: 100.5 | T32: 95.7 | U32: 104.3
A33: 2024-05 | B33: 99.4 | C33: 100.9 | D33: 101 | E33: 98.7 | F33: 98.3 | G33: 85.3 | H33: 93.7 | I33: 101.1 | J33: 90.7 | K33: 91 | L33: 98.4 | M33: 91.5 | N33: 103.8 | O33: 101.6 | P33: 102 | Q33: 99.9 | R33: 103.4 | S33: 98.6 | T33: 95.4 | U33: 104.3
A34: 2024-06 | B34: 99.7 | C34: 101.1 | D34: 101.1 | E34: 98.2 | F34: 98.5 | G34: 86.7 | H34: 94.5 | I34: 101.3 | J34: 91.1 | K34: 91.8 | L34: 98.9 | M34: 91.5 | N34: 105.6 | O34: 103.6 | P34: 104.3 | Q34: 101.8 | R34: 106.3 | S34: 97.9 | T34: 95.4 | U34: 104.3
A35: 2024-07 | B35: 100.1 | C35: 101.4 | D35: 101.3 | E35: 98.9 | F35: 99.2 | G35: 86.8 | H35: 94.3 | I35: 101.1 | J35: 91.4 | K35: 91.8 | L35: 99.2 | M35: 91.8 | N35: 105.5 | O35: 103.7 | P35: 104.5 | Q35: 102 | R35: 106.4 | S35: 98.8 | T35: 96.1 | U35: 104.4
A36: 2024-08 | B36: 100.3 | C36: 101.2 | D36: 101.4 | E36: 98 | F36: 99 | G36: 86.8 | H36: 94.1 | I36: 101 | J36: 91.4 | K36: 92.1 | L36: 99.1 | M36: 91.2 | N36: 105.4 | O36: 103.8 | P36: 104.3 | Q36: 101.8 | R36: 106.1 | S36: 97.8 | T36: 95.9 | U36: 104.4
A37: 2024-09 | B37: 99.9 | C37: 100.9 | D37: 101.2 | E37: 97.2 | F37: 98.6 | G37: 85.6 | H37: 93 | I37: 101.1 | J37: 90.6 | K37: 91.1 | L37: 98.4 | M37: 90.4 | N37: 104.8 | O37: 103.8 | P37: 104.1 | Q37: 101.1 | R37: 105.9 | S37: 96.9 | T37: 94.7 | U37: 104.4
A38: 2024-10 | B38: 99.7 | C38: 101 | D38: 101.1 | E38: 97 | F38: 98.1 | G38: 84.7 | H38: 92.6 | I38: 102 | J38: 90.3 | K38: 90.6 | L38: 98.3 | M38: 89.7 | N38: 105.1 | O38: 103.9 | P38: 103.9 | Q38: 101 | R38: 106.5 | S38: 96.8 | T38: 94.5 | U38: 104.5
A39: 2024-11 | B39: 100.4 | C39: 101.1 | D39: 101.6 | E39: 97.6 | F39: 98.8 | G39: 85.3 | H39: 92.9 | I39: 102.2 | J39: 90.8 | K39: 92 | L39: 98.5 | M39: 89.8 | N39: 105.1 | O39: 103.7 | P39: 104.3 | Q39: 101.4 | R39: 106.4 | S39: 98 | T39: 95.1 | U39: 104.5
A40: 2024-12 | B40: 100.6 | C40: 101.3 | D40: 101.6 | E40: 97.9 | F40: 98.7 | G40: 86.1 | H40: 93.6 | I40: 102.4 | J40: 91.4 | K40: 92.7 | L40: 98.9 | M40: 90.2 | N40: 105.4 | O40: 104 | P40: 104.3 | Q40: 101.8 | R40: 106.6 | S40: 98.4 | T40: 95.4 | U40: 104.5
A41: 2025-01 | B41: 101.4 | C41: 102 | D41: 102.1 | E41: 99.6 | F41: 100 | G41: 86.8 | H41: 95 | I41: 102.9 | J41: 92.7 | K41: 94.1 | L41: 100 | M41: 91.6 | N41: 105.7 | O41: 104.4 | P41: 104.7 | Q41: 103.2 | R41: 106.7 | S41: 100.4 | T41: 96.6 | U41: 106.7
A42: 2025-02 | B42: 103 | C42: 104.3 | D42: 105.1 | E42: 100.8 | F42: 100.7 | G42: 88 | H42: 96.2 | I42: 104.5 | J42: 93.8 | K42: 95.1 | L42: 101.3 | M42: 91.9 | N42: 105.9 | O42: 104.5 | P42: 104.7 | Q42: 103.5 | R42: 106.1 | S42: 101.3 | T42: 98 | U42: 106.7
A43: 2025-03 | B43: 102.3 | C43: 103.9 | D43: 104.4 | E43: 99.6 | F43: 99.8 | G43: 87.4 | H43: 95.3 | I43: 104.3 | J43: 92.5 | K43: 92.7 | L43: 100.3 | M43: 91 | N43: 105.3 | O43: 103.8 | P43: 104.2 | Q43: 102.8 | R43: 106 | S43: 99.5 | T43: 96.6 | U43: 106.7
A44: 2025-04 | B44: 101.3 | C44: 103.3 | D44: 104.2 | E44: 98.6 | F44: 98.3 | G44: 86.8 | H44: 95.2 | I44: 104 | J44: 92.2 | K44: 92.1 | L44: 99.9 | M44: 90.1 | N44: 105.5 | O44: 103.8 | P44: 104 | Q44: 102.3 | R44: 106.5 | S44: 98.1 | T44: 96.2 | U44: 107.1
A45: 2025-05 | B45: 100.9 | C45: 103 | D45: 103.9 | E45: 97.9 | F45: 98.6 | G45: 86 | H45: 93.8 | I45: 103.9 | J45: 91.1 | K45: 90.8 | L45: 99.2 | M45: 89.3 | N45: 104.9 | O45: 103.3 | P45: 103.5 | Q45: 102.2 | R45: 105.8 | S45: 97.3 | T45: 95.1 | U45: 107.1
A46: 2025-06 | B46: 101.6 | C46: 103.4 | D46: 104.6 | E46: 98.7 | F46: 99.5 | G46: 86 | H46: 93.2 | I46: 104.5 | J46: 91.1 | K46: 91.6 | L46: 99.4 | M46: 89.4 | N46: 105.6 | O46: 104.3 | P46: 104.1 | Q46: 103.4 | R46: 106.5 | S46: 98.9 | T46: 95.6 | U46: 107.1
A47: 2025-07 | B47: 101.7 | C47: 103.6 | D47: 104.6 | E47: 99.2 | F47: 99.8 | G47: 84.7 | H47: 93.4 | I47: 104.4 | J47: 91.1 | K47: 91.5 | L47: 99.6 | M47: 89.5 | N47: 105.6 | O47: 103.7 | P47: 104.1 | Q47: 103.1 | R47: 106.3 | S47: 99.1 | T47: 95.5 | U47: 107.1
A48: 2025-08 | B48: 101.6 | C48: 103.7 | D48: 104.6 | E48: 98.9 | F48: 99.3 | G48: 84.8 | H48: 94.4 | I48: 104.3 | J48: 91.6 | K48: 92.2 | L48: 99.8 | M48: 89.2 | N48: 105.3 | O48: 103.8 | P48: 103.5 | Q48: 102.5 | R48: 106.2 | S48: 98.4 | T48: 95.4 | U48: 107.1
A49: 2025-09 | B49: 101.7 | C49: 103.7 | D49: 104.7 | E49: 99.1 | F49: 98.9 | G49: 85 | H49: 93.8 | I49: 104.8 | J49: 91.2 | K49: 91.8 | L49: 99.7 | M49: 89.1 | N49: 105.4 | O49: 103.4 | P49: 103.4 | Q49: 102.5 | R49: 105.6 | S49: 98.8 | T49: 95.3 | U49: 107.2
A50: 2025-10 | B50: 101.2 | C50: 103.4 | D50: 104.6 | E50: 98.6 | F50: 98.9 | G50: 85.8 | H50: 93.4 | I50: 105 | J50: 90.7 | K50: 91.3 | L50: 99.5 | M50: 88.7 | N50: 105.6 | O50: 103.7 | P50: 103.7 | Q50: 102.7 | R50: 105.8 | S50: 98.4 | T50: 94.9 | U50: 107.2
A51: 2025-11 | B51: 101.7 | C51: 103.8 | D51: 104.8 | E51: 100.1 | F51: 99.2 | G51: 86.9 | H51: 95.1 | I51: 105.4 | J51: 91.9 | K51: 92.9 | L51: 100.5 | M51: 90.4 | N51: 106 | O51: 103.8 | P51: 103.6 | Q51: 103.2 | R51: 106.2 | S51: 99.9 | T51: 96.3 | U51: 107.2
A52: 2025-12 | B52: 101.4 | C52: 103.9 | D52: 104.7 | E52: 99.4 | F52: 99.1 | G52: 87.2 | H52: 95.1 | I52: 105.3 | J52: 91.7 | K52: 92.7 | L52: 100.3 | M52: 90.3 | N52: 106.1 | O52: 104.2 | P52: 104 | Q52: 103 | R52: 107.6 | S52: 99.2 | T52: 95.7 | U52: 107.2
A53: 2026-01 | B53: 102.1 | C53: 103.9 | D53: 105.1 | E53: 99.5 | F53: 99.1 | G53: 89 | H53: 95.3 | I53: 106.2 | J53: 92.3 | K53: 93.7 | L53: 100.7 | M53: 91.4 | N53: 106.1 | O53: 104.4 | P53: 104.5 | Q53: 103.5 | R53: 107.9 | S53: 99.1 | T53: 96.8 | U53: 108
A54: 2026-02 | B54: 101.9 | C54: 104.1 | D54: 104.8 | E54: 100.3 | F54: 99.1 | G54: 89.4 | H54: 96.2 | I54: 106.7 | J54: 92.9 | K54: 93.5 | L54: 101 | M54: 92.4 | N54: 106.5 | O54: 104.1 | P54: 104.6 | Q54: 103.6 | R54: 108.4 | S54: 99.7 | T54: 97.6 | U54: 108
A55: 2026-03 | B55: 104.7 | C55: 107.2 | D55: 107.6 | E55: 107.8 | F55: 105.7 | G55: 92.5 | H55: 100.7 | I55: 109.1 | J55: 97.1 | K55: 96.8 | L55: 105.8 | M55: 98.4 | N55: 109.2 | O55: 106 | P55: 105.5 | Q55: 106.3 | R55: 109.1 | S55: 107.6 | T55: 103.7 | U55: 108
A56: 2026-04 | B56: 105.1 | C56: 108 | D56: 108.1 | E56: 112.3 | F56: 110 | G56: 92.5 | H56: 104 | I56: 110 | J56: 99.3 | K56: 98.6 | L56: 108.2 | M56: 102 | N56: 110.4 | O56: 106.7 | P56: 105.5 | Q56: 106.7 | R56: 108.4 | S56: 112 | T56: 106 | U56: 109.5
A57: 2026-05 | B57: 105.3 | C57: 108.2 | D57: 108.3 | E57: 110.4 | F57: 109.3 | G57: 92.2 | H57: 104.2 | I57: 110.1 | J57: 99.4 | K57: 99 | L57: 108.2 | M57: 100.2 | N57: 110.3 | O57: 107.1 | P57: 106.7 | Q57: 107.6 | R57: 109.6 | S57: 109.7 | T57: 105.4 | U57: 109.5

Sheet 3_Calcolo Periodo SAL
A2: CALCOLO INDICE DI PERIODO (CASO SAL PLURIMENSILE)
A4: Inizio Periodo SAL: | B4: 2026-04
A5: Fine Periodo SAL: | B5: 2026-05
A7: Codice TOL | B7: Descrizione Lavorazione | C7: Peso Wi | D7: media indici arco temporale SAL | E7: indice riponderato | F7: quota ponderata finalizzata
A8: TOL-01 | B8: Opere edili su edifici e manufatti non soggetti a tutela dei beni culturali | C8: ='1_Scomposizione TOL'!D5 -> 0.05865102639 | D8: =AVERAGEIFS(INDEX('2_DB Indici ISTAT'!$B$5:$U$500, 0, MATCH(A8, '2_DB Indici ISTAT'!$B$4:$U$4, 0)), '2_DB Indici ISTAT'!$A$5:$A$500, ">="&$B$4, '2_DB Indici ISTAT'!$A$5:$A$500, "<="&$B$5) -> 105.2 | E8: =(D8 / '1_Scomposizione TOL'!$E5)*100 -> 103.7475345 | F8: =C8*E8 -> 6.084899385
A9: TOL-02 | B9: Opere edili su edifici e manufatti soggetti a tutela dei beni culturali | C9: ='1_Scomposizione TOL'!D6 -> 0.07331378299 | D9: =AVERAGEIFS(INDEX('2_DB Indici ISTAT'!$B$5:$U$500, 0, MATCH(A9, '2_DB Indici ISTAT'!$B$4:$U$4, 0)), '2_DB Indici ISTAT'!$A$5:$A$500, ">="&$B$4, '2_DB Indici ISTAT'!$A$5:$A$500, "<="&$B$5) -> 108.1 | E9: =(D9 / '1_Scomposizione TOL'!$E6)*100 -> 105.9803922 | F9: 7.769823472
A10: TOL-03 | B10: Scavi archeologici, restauri specialistici di beni del patrimonio culturale e di interesse storico | C10: ='1_Scomposizione TOL'!D7 -> 0.146627566 | D10: =AVERAGEIFS(INDEX('2_DB Indici ISTAT'!$B$5:$U$500, 0, MATCH(A10, '2_DB Indici ISTAT'!$B$4:$U$4, 0)), '2_DB Indici ISTAT'!$A$5:$A$500, ">="&$B$4, '2_DB Indici ISTAT'!$A$5:$A$500, "<="&$B$5) -> 108.2 | E10: =(D10 / '1_Scomposizione TOL'!$E7)*100 -> 105.9745348 | F10: 15.53878809
A11: TOL-04 | B11: Lavori di movimento terra, demolizioni, opere di protezione ambientale, ingegneria naturalistica e opere a verde | C11: ='1_Scomposizione TOL'!D8 -> 0.0146627566 | D11: =AVERAGEIFS(INDEX('2_DB Indici ISTAT'!$B$5:$U$500, 0, MATCH(A11, '2_DB Indici ISTAT'!$B$4:$U$4, 0)), '2_DB Indici ISTAT'!$A$5:$A$500, ">="&$B$4, '2_DB Indici ISTAT'!$A$5:$A$500, "<="&$B$5) -> 111.35 | E11: =(D11 / '1_Scomposizione TOL'!$E8)*100 -> 111.7971888 | F11: 1.639254967
A12: TOL-05 | B12: Pavimentazioni in conglomerato bituminoso | C12: ='1_Scomposizione TOL'!D9 -> 0.07331378299 | D12: =AVERAGEIFS(INDEX('2_DB Indici ISTAT'!$B$5:$U$500, 0, MATCH(A12, '2_DB Indici ISTAT'!$B$4:$U$4, 0)), '2_DB Indici ISTAT'!$A$5:$A$500, ">="&$B$4, '2_DB Indici ISTAT'!$A$5:$A$500, "<="&$B$5) -> 109.65 | E12: =(D12 / '1_Scomposizione TOL'!$E9)*100 -> 109.65 | F12: 8.038856305
A13: TOL-06 | B13: Strutture, opere di ingegneria e manufatti in acciaio | C13: ='1_Scomposizione TOL'!D10 -> 0.03519061584 | D13: =AVERAGEIFS(INDEX('2_DB Indici ISTAT'!$B$5:$U$500, 0, MATCH(A13, '2_DB Indici ISTAT'!$B$4:$U$4, 0)), '2_DB Indici ISTAT'!$A$5:$A$500, ">="&$B$4, '2_DB Indici ISTAT'!$A$5:$A$500, "<="&$B$5) -> 92.35 | E13: =(D13 / '1_Scomposizione TOL'!$E10)*100 -> 106.3940092 | F13: 3.744070706
A14: TOL-07 | B14: Strutture, opere di ingegneria e manufatti in calcestruzzo armato, anche prefabbricato | C14: ='1_Scomposizione TOL'!D11 -> 0.0146627566 | D14: =AVERAGEIFS(INDEX('2_DB Indici ISTAT'!$B$5:$U$500, 0, MATCH(A14, '2_DB Indici ISTAT'!$B$4:$U$4, 0)), '2_DB Indici ISTAT'!$A$5:$A$500, ">="&$B$4, '2_DB Indici ISTAT'!$A$5:$A$500, "<="&$B$5) -> 104.1 | E14: =(D14 / '1_Scomposizione TOL'!$E11)*100 -> 109.5789474 | F14: 1.606729434
A15: TOL-08 | B15: Strutture, opere di ingegneria e manufatti in legno | C15: ='1_Scomposizione TOL'!D12 -> 0.0146627566 | D15: =AVERAGEIFS(INDEX('2_DB Indici ISTAT'!$B$5:$U$500, 0, MATCH(A15, '2_DB Indici ISTAT'!$B$4:$U$4, 0)), '2_DB Indici ISTAT'!$A$5:$A$500, ">="&$B$4, '2_DB Indici ISTAT'!$A$5:$A$500, "<="&$B$5) -> 110.05 | E15: =(D15 / '1_Scomposizione TOL'!$E12)*100 -> 106.9484937 | F15: 1.568159731
A16: TOL-09 | B16: Gallerie e opere d'arte nel sottosuolo realizzate con metodo tradizionale | C16: ='1_Scomposizione TOL'!D13 -> 0.0146627566 | D16: =AVERAGEIFS(INDEX('2_DB Indici ISTAT'!$B$5:$U$500, 0, MATCH(A16, '2_DB Indici ISTAT'!$B$4:$U$4, 0)), '2_DB Indici ISTAT'!$A$5:$A$500, ">="&$B$4, '2_DB Indici ISTAT'!$A$5:$A$500, "<="&$B$5) -> 99.35 | E16: =(D16 / '1_Scomposizione TOL'!$E13)*100 -> 107.1736785 | F16: 1.571461562
A17: TOL-10 | B17: Gallerie e opere d'arte nel sottosuolo realizzate con metodo meccanizzato | C17: ='1_Scomposizione TOL'!D14 -> 0.0146627566 | D17: =AVERAGEIFS(INDEX('2_DB Indici ISTAT'!$B$5:$U$500, 0, MATCH(A17, '2_DB Indici ISTAT'!$B$4:$U$4, 0)), '2_DB Indici ISTAT'!$A$5:$A$500, ">="&$B$4, '2_DB Indici ISTAT'!$A$5:$A$500, "<="&$B$5) -> 98.8 | E17: =(D17 / '1_Scomposizione TOL'!$E14)*100 -> 104.9946865 | F17: 1.539511532
A18: TOL-11 | B18: Acquedotti, gasdotti, opere di irrigazione e fognature | C18: ='1_Scomposizione TOL'!D15 -> 0.0146627566 | D18: =AVERAGEIFS(INDEX('2_DB Indici ISTAT'!$B$5:$U$500, 0, MATCH(A18, '2_DB Indici ISTAT'!$B$4:$U$4, 0)), '2_DB Indici ISTAT'!$A$5:$A$500, ">="&$B$4, '2_DB Indici ISTAT'!$A$5:$A$500, "<="&$B$5) -> 108.2 | E18: =(D18 / '1_Scomposizione TOL'!$E15)*100 -> 108.2 | F18: 1.586510264
A19: TOL-12 | B19: Opere marittime e lavori di dragaggio, opere fluviali e di difesa del suolo | C19: ='1_Scomposizione TOL'!D16 -> 0.2287390029 | D19: =AVERAGEIFS(INDEX('2_DB Indici ISTAT'!$B$5:$U$500, 0, MATCH(A19, '2_DB Indici ISTAT'!$B$4:$U$4, 0)), '2_DB Indici ISTAT'!$A$5:$A$500, ">="&$B$4, '2_DB Indici ISTAT'!$A$5:$A$500, "<="&$B$5) -> 101.1 | E19: =(D19 / '1_Scomposizione TOL'!$E16)*100 -> 110.371179 | F19: 25.24619345
A20: TOL-13 | B20: Impianti per la produzione, trasformazione e distribuzione di energia elettrica in alta e media tensione per la trazione elettrica e l'illuminazione pubblica | C20: ='1_Scomposizione TOL'!D17 -> 0.004398826979 | D20: =AVERAGEIFS(INDEX('2_DB Indici ISTAT'!$B$5:$U$500, 0, MATCH(A20, '2_DB Indici ISTAT'!$B$4:$U$4, 0)), '2_DB Indici ISTAT'!$A$5:$A$500, ">="&$B$4, '2_DB Indici ISTAT'!$A$5:$A$500, "<="&$B$5) -> 110.35 | E20: =(D20 / '1_Scomposizione TOL'!$E17)*100 -> 104.3992431 | F20: 0.4592342074
A21: TOL-14 | B21: Impianti elettrici, tecnologici, radiotelefonici e antintrusione | C21: ='1_Scomposizione TOL'!D18 -> 0.0293255132 | D21: =AVERAGEIFS(INDEX('2_DB Indici ISTAT'!$B$5:$U$500, 0, MATCH(A21, '2_DB Indici ISTAT'!$B$4:$U$4, 0)), '2_DB Indici ISTAT'!$A$5:$A$500, ">="&$B$4, '2_DB Indici ISTAT'!$A$5:$A$500, "<="&$B$5) -> 106.9 | E21: =(D21 / '1_Scomposizione TOL'!$E18)*100 -> 102.394636 | F21: 3.00277525
A22: TOL-15 | B22: Impianti meccanici, termici, di condizionamento, idrico sanitari e trasportatori | C22: ='1_Scomposizione TOL'!D19 -> 0.04398826979 | D22: =AVERAGEIFS(INDEX('2_DB Indici ISTAT'!$B$5:$U$500, 0, MATCH(A22, '2_DB Indici ISTAT'!$B$4:$U$4, 0)), '2_DB Indici ISTAT'!$A$5:$A$500, ">="&$B$4, '2_DB Indici ISTAT'!$A$5:$A$500, "<="&$B$5) -> 106.1 | E22: =(D22 / '1_Scomposizione TOL'!$E19)*100 -> 101.3371538 | F22: 4.45764606
A23: TOL-16 | B23: Impianti di potabilizzazione e depurazione | C23: ='1_Scomposizione TOL'!D20 -> 0.04398826979 | D23: =AVERAGEIFS(INDEX('2_DB Indici ISTAT'!$B$5:$U$500, 0, MATCH(A23, '2_DB Indici ISTAT'!$B$4:$U$4, 0)), '2_DB Indici ISTAT'!$A$5:$A$500, ">="&$B$4, '2_DB Indici ISTAT'!$A$5:$A$500, "<="&$B$5) -> 107.15 | E23: =(D23 / '1_Scomposizione TOL'!$E20)*100 -> 103.8275194 | F23: 4.567192935
A24: TOL-17 | B24: Impianti di segnalamento, sicurezza del traffico e telecomunicazioni | C24: ='1_Scomposizione TOL'!D21 -> 0.03519061584 | D24: =AVERAGEIFS(INDEX('2_DB Indici ISTAT'!$B$5:$U$500, 0, MATCH(A24, '2_DB Indici ISTAT'!$B$4:$U$4, 0)), '2_DB Indici ISTAT'!$A$5:$A$500, ">="&$B$4, '2_DB Indici ISTAT'!$A$5:$A$500, "<="&$B$5) -> 109 | E24: =(D24 / '1_Scomposizione TOL'!$E21)*100 -> 102.1555764 | F24: 3.594917644
A25: TOL-18 | B25: Armamento ferroviario | C25: ='1_Scomposizione TOL'!D22 -> 0.1026392962 | D25: =AVERAGEIFS(INDEX('2_DB Indici ISTAT'!$B$5:$U$500, 0, MATCH(A25, '2_DB Indici ISTAT'!$B$4:$U$4, 0)), '2_DB Indici ISTAT'!$A$5:$A$500, ">="&$B$4, '2_DB Indici ISTAT'!$A$5:$A$500, "<="&$B$5) -> 110.85 | E25: =(D25 / '1_Scomposizione TOL'!$E22)*100 -> 110.4083665 | F25: 11.33223703
A26: TOL-19 | B26: Opere di fondazione speciale, indagini geologiche e geotecniche | C26: ='1_Scomposizione TOL'!D23 -> 0.00146627566 | D26: =AVERAGEIFS(INDEX('2_DB Indici ISTAT'!$B$5:$U$500, 0, MATCH(A26, '2_DB Indici ISTAT'!$B$4:$U$4, 0)), '2_DB Indici ISTAT'!$A$5:$A$500, ">="&$B$4, '2_DB Indici ISTAT'!$A$5:$A$500, "<="&$B$5) -> 105.7 | E26: =(D26 / '1_Scomposizione TOL'!$E23)*100 -> 109.4202899 | F26: 0.1604403077
A27: TOL-20 | B27: Conferimento rifiuti a impianto di smaltimento o recupero | C27: ='1_Scomposizione TOL'!D24 -> 0.03519061584 | D27: =AVERAGEIFS(INDEX('2_DB Indici ISTAT'!$B$5:$U$500, 0, MATCH(A27, '2_DB Indici ISTAT'!$B$4:$U$4, 0)), '2_DB Indici ISTAT'!$A$5:$A$500, ">="&$B$4, '2_DB Indici ISTAT'!$A$5:$A$500, "<="&$B$5) -> 109.5 | E27: =(D27 / '1_Scomposizione TOL'!$E24)*100 -> 102.6241799 | F27: 3.611408092
B28: INDICE REVISIONALE SINTETICO MEDIO DEL PERIODO (Ispx) | F28: =SUM(F8:F27) -> 107.1201104

Sheet 4_Registro Revisioni
A2: REGISTRO REVISIONI PREZZI - CALCOLO FINALE APPLICATO
B4: Parametro Contabile / Revisionale | C4: Riferimento Formula / Legge | D4: Valore | E4: Note Metodologiche
B5: Importo SAL Contabilità (SAL_cpx): | C5: Valore contabile di base | D5: 150000 | E5: Importo del SAL lordo a prezzi contrattuali (Modificabile)
B6: Indice Offerta Gara (Ismo): | C6: Art. 5, c. 4, punto 3 | D6: 100 | E6: Posto convenzionalmente fisso a 100 ex lege
B7: Indice Medio del Periodo (Ispx): | C7: ='3_Calcolo Periodo SAL'!G28 -> 0 | D7: ='3_Calcolo Periodo SAL'!F28 -> 107.1201104 | E7: Somma pesata importata dal foglio 3
B8: Scostamento Percentuale Variazione: | C8: Delta = (Ispx - Ismo) / Ismo | D8: =ROUND((D7-D6)/D6, 4) -> 0.0712 | E8: Variazione lorda dei prezzi (Arrotondata a 4 decimali)
B9: Verifica Franchigia 3% (Alea): | C9: Soglia limite ± 0,03 | D9: =IF(ABS(D8)>0.03, "LIQUIDABILE", "NELL'ALEA") -> LIQUIDABILE | E9: Controlla se lo scostamento esce dall'alea
B10: Coefficiente Netto Arrotondato (90%): | C10: Coeff = (Delta ± 0,03) * 0,9 | D10: =IF(ABS(D8)>0.03, ROUND(IF(D8>0.03, (D8-0.03)*0.9, (D8+0.03)*0.9), 4), 0) -> 0.0371 | E10: Percentuale netta spettante ridotta al 90% ex punto 5
B11: IMPORTO REVISIONE PREZZI FINALE (SAL_rpx): | C11: SAL_rpx = SAL_cpx * Coeff | D11: =D5*D10 -> 5565 | E11: Valore economico finale in Euro liquidabile o da recuperare

Sheet 5_dati scaricati da istat
A1: Tipologie omogenee di lavorazioni (TOL) - mensili (base 2022) | H1: link tol
H2: scaricare excel e incollarlo sotto
A3: Tipologie omogenee di lavorazioni (TOL) - mensili (base 2022)
A4: Frequenza: Mensile
A5: Territorio: Italia
A6: Indicatore: Indice di costo di lavorazione dati mensili (base 2022=100) - dati mensili
A7: Correzione: Dati grezzi
A9: Tempo | B9: 2022-01 | C9: 2022-02 | D9: 2022-03 | E9: 2022-04 | F9: 2022-05 | G9: 2022-06 | H9: 2022-07 | I9: 2022-08 | J9: 2022-09 | K9: 2022-10 | L9: 2022-11 | M9: 2022-12 | N9: 2023-01 | O9: 2023-02 | P9: 2023-03 | Q9: 2023-04 | R9: 2023-05 | S9: 2023-06 | T9: 2023-07 | U9: 2023-08 | V9: 2023-09 | W9: 2023-10 | X9: 2023-11 | Y9: 2023-12 | Z9: 2024-01 | AA9: 2024-02 | AB9: 2024-03 | AC9: 2024-04 | AD9: 2024-05 | AE9: 2024-06 | AF9: 2024-07 | AG9: 2024-08 | AH9: 2024-09 | AI9: 2024-10 | AJ9: 2024-11 | AK9: 2024-12 | AL9: 2025-01 | AM9: 2025-02 | AN9: 2025-03 | AO9: 2025-04 | AP9: 2025-05 | AQ9: 2025-06 | AR9: 2025-07 | AS9: 2025-08 | AT9: 2025-09 | AU9: 2025-10 | AV9: 2025-11 | AW9: 2025-12 | AX9: 2026-01 | AY9: 2026-02 | AZ9: 2026-03 | BA9: 2026-04 | BB9: 2026-05
A10: Tipologie omogenee di lavorazioni
A11: TOL.1 - Opere edili su edifici e manufatti non soggetti a tutela dei beni culturali | B11: 90.9 | C11: 91.6 | D11: 96.7 | E11: 98 | F11: 99.1 | G11: 100.2 | H11: 102.5 | I11: 104.6 | J11: 104.7 | K11: 103.2 | L11: 103.8 | M11: 104.7 | N11: 103.1 | O11: 102.7 | P11: 102 | Q11: 101.8 | R11: 100.8 | S11: 100.3 | T11: 100.9 | U11: 100.9 | V11: 100.7 | W11: 100.5 | X11: 100.1 | Y11: 99.9 | Z11: 99.7 | AA11: 99.3 | AB11: 99.4 | AC11: 99 | AD11: 99.4 | AE11: 99.7 | AF11: 100.1 | AG11: 100.3 | AH11: 99.9 | AI11: 99.7 | AJ11: 100.4 | AK11: 100.6 | AL11: 101.4 | AM11: 103 | AN11: 102.3 | AO11: 101.3 | AP11: 100.9 | AQ11: 101.6 | AR11: 101.7 | AS11: 101.6 | AT11: 101.7 | AU11: 101.2 | AV11: 101.7 | AW11: 101.4 | AX11: 102.1 | AY11: 101.9 | AZ11: 104.7 | BA11: 105.1 | BB11: 105.3
A12: TOL.2 - Opere edili su edifici e manufatti soggetti a tutela dei beni culturali | B12: 93.2 | C12: 93.4 | D12: 98.1 | E12: 99.3 | F12: 99.9 | G12: 100.3 | H12: 101.5 | I12: 102.7 | J12: 103.3 | K12: 102.8 | L12: 102.6 | M12: 102.9 | N12: 102.6 | O12: 102.4 | P12: 102.2 | Q12: 102 | R12: 101.4 | S12: 101.1 | T12: 102 | U12: 102 | V12: 102 | W12: 101.7 | X12: 101.4 | Y12: 101.3 | Z12: 101.2 | AA12: 101 | AB12: 100.9 | AC12: 100.8 | AD12: 100.9 | AE12: 101.1 | AF12: 101.4 | AG12: 101.2 | AH12: 100.9 | AI12: 101 | AJ12: 101.1 | AK12: 101.3 | AL12: 102 | AM12: 104.3 | AN12: 103.9 | AO12: 103.3 | AP12: 103 | AQ12: 103.4 | AR12: 103.6 | AS12: 103.7 | AT12: 103.7 | AU12: 103.4 | AV12: 103.8 | AW12: 103.9 | AX12: 103.9 | AY12: 104.1 | AZ12: 107.2 | BA12: 108 | BB12: 108.2
A13: TOL.3 - Scavi archeologici, restauri specialistici di beni del patrimonio culturale e di interesse storico | B13: 96.2 | C13: 96.1 | D13: 99.5 | E13: 99.6 | F13: 99.7 | G13: 100.4 | H13: 101.6 | I13: 102 | J13: 101.6 | K13: 101.2 | L13: 101.2 | M13: 101.1 | N13: 100.8 | O13: 100.8 | P13: 100.7 | Q13: 100.5 | R13: 100.1 | S13: 100 | T13: 101.4 | U13: 101.6 | V13: 101.7 | W13: 101.8 | X13: 101.6 | Y13: 101.5 | Z13: 101.1 | AA13: 101.3 | AB13: 101.6 | AC13: 101.2 | AD13: 101 | AE13: 101.1 | AF13: 101.3 | AG13: 101.4 | AH13: 101.2 | AI13: 101.1 | AJ13: 101.6 | AK13: 101.6 | AL13: 102.1 | AM13: 105.1 | AN13: 104.4 | AO13: 104.2 | AP13: 103.9 | AQ13: 104.6 | AR13: 104.6 | AS13: 104.6 | AT13: 104.7 | AU13: 104.6 | AV13: 104.8 | AW13: 104.7 | AX13: 105.1 | AY13: 104.8 | AZ13: 107.6 | BA13: 108.1 | BB13: 108.3
A14: TOL.4 - Lavori di movimento terra, demolizioni, opere di protezione ambientale, ingegneria naturalistica e opere a verde | B14: 91.3 | C14: 92.8 | D14: 100 | E14: 99.8 | F14: 100.8 | G14: 103.3 | H14: 102.9 | I14: 101.4 | J14: 101.6 | K14: 103.3 | L14: 102.9 | M14: 100 | N14: 100.5 | O14: 100.1 | P14: 99.5 | Q14: 98.7 | R14: 97.1 | S14: 97.2 | T14: 98.1 | U14: 100.1 | V14: 101 | W14: 100.6 | X14: 99.4 | Y14: 98.5 | Z14: 98.6 | AA14: 100.1 | AB14: 100.3 | AC14: 99.8 | AD14: 98.7 | AE14: 98.2 | AF14: 98.9 | AG14: 98 | AH14: 97.2 | AI14: 97 | AJ14: 97.6 | AK14: 97.9 | AL14: 99.6 | AM14: 100.8 | AN14: 99.6 | AO14: 98.6 | AP14: 97.9 | AQ14: 98.7 | AR14: 99.2 | AS14: 98.9 | AT14: 99.1 | AU14: 98.6 | AV14: 100.1 | AW14: 99.4 | AX14: 99.5 | AY14: 100.3 | AZ14: 107.8 | BA14: 112.3 | BB14: 110.4
A15: TOL.5 - Pavimentazioni in conglomerato bituminoso | B15: 88.6 | C15: 89.3 | D15: 99.3 | E15: 100.4 | F15: 100.5 | G15: 103 | H15: 104.2 | I15: 104.2 | J15: 103.2 | K15: 103.4 | L15: 102.2 | M15: 101.7 | N15: 102 | O15: 101 | P15: 100.3 | Q15: 99.5 | R15: 98.1 | S15: 98.1 | T15: 99.2 | U15: 99.2 | V15: 99.8 | W15: 100.4 | X15: 99.6 | Y15: 98.9 | Z15: 98.4 | AA15: 98.8 | AB15: 98.9 | AC15: 98.9 | AD15: 98.3 | AE15: 98.5 | AF15: 99.2 | AG15: 99 | AH15: 98.6 | AI15: 98.1 | AJ15: 98.8 | AK15: 98.7 | AL15: 100 | AM15: 100.7 | AN15: 99.8 | AO15: 98.3 | AP15: 98.6 | AQ15: 99.5 | AR15: 99.8 | AS15: 99.3 | AT15: 98.9 | AU15: 98.9 | AV15: 99.2 | AW15: 99.1 | AX15: 99.1 | AY15: 99.1 | AZ15: 105.7 | BA15: 110 | BB15: 109.3
A16: TOL.6 - Strutture, opere di ingegneria e manufatti in acciaio | B16: 92.9 | C16: 93.8 | D16: 109.6 | E16: 115.1 | F16: 108.5 | G16: 102.5 | H16: 100.4 | I16: 101.1 | J16: 99.8 | K16: 93.9 | L16: 91.3 | M16: 91 | N16: 91.3 | O16: 92.6 | P16: 93.1 | Q16: 93.9 | R16: 90.8 | S16: 88.2 | T16: 88 | U16: 88 | V16: 87 | W16: 85.5 | X16: 86.3 | Y16: 87.1 | Z16: 88.5 | AA16: 88.1 | AB16: 86.4 | AC16: 85 | AD16: 85.3 | AE16: 86.7 | AF16: 86.8 | AG16: 86.8 | AH16: 85.6 | AI16: 84.7 | AJ16: 85.3 | AK16: 86.1 | AL16: 86.8 | AM16: 88 | AN16: 87.4 | AO16: 86.8 | AP16: 86 | AQ16: 86 | AR16: 84.7 | AS16: 84.8 | AT16: 85 | AU16: 85.8 | AV16: 86.9 | AW16: 87.2 | AX16: 89 | AY16: 89.4 | AZ16: 92.5 | BA16: 92.5 | BB16: 92.2
A17: TOL.7 - Strutture, opere di ingegneria e manufatti in calcestruzzo armato, anche prefabbricato | B17: 91 | C17: 91.9 | D17: 100.2 | E17: 104 | F17: 104 | G17: 101.4 | H17: 100.9 | I17: 102.1 | J17: 103.2 | K17: 101.2 | L17: 100.4 | M17: 99.8 | N17: 99.6 | O17: 98.5 | P17: 97.5 | Q17: 97.7 | R17: 96 | S17: 95.3 | T17: 95.4 | U17: 95.5 | V17: 94.6 | W17: 93.7 | X17: 93.7 | Y17: 94.7 | Z17: 94.5 | AA17: 94.4 | AB17: 93.7 | AC17: 93.5 | AD17: 93.7 | AE17: 94.5 | AF17: 94.3 | AG17: 94.1 | AH17: 93 | AI17: 92.6 | AJ17: 92.9 | AK17: 93.6 | AL17: 95 | AM17: 96.2 | AN17: 95.3 | AO17: 95.2 | AP17: 93.8 | AQ17: 93.2 | AR17: 93.4 | AS17: 94.4 | AT17: 93.8 | AU17: 93.4 | AV17: 95.1 | AW17: 95.1 | AX17: 95.3 | AY17: 96.2 | AZ17: 100.7 | BA17: 104 | BB17: 104.2
A18: TOL.8 - Strutture, opere di ingegneria e manufatti in legno | B18: 95.2 | C18: 95.6 | D18: 98.9 | E18: 99.8 | F18: 100.2 | G18: 100.1 | H18: 101.3 | I18: 101.4 | J18: 101.7 | K18: 102.4 | L18: 102.1 | M18: 101.3 | N18: 100.3 | O18: 100.2 | P18: 100.5 | Q18: 100.5 | R18: 99.9 | S18: 99.8 | T18: 100.2 | U18: 100.2 | V18: 100.6 | W18: 100.7 | X18: 100.1 | Y18: 99.9 | Z18: 100.3 | AA18: 100.7 | AB18: 100.9 | AC18: 101.3 | AD18: 101.1 | AE18: 101.3 | AF18: 101.1 | AG18: 101 | AH18: 101.1 | AI18: 102 | AJ18: 102.2 | AK18: 102.4 | AL18: 102.9 | AM18: 104.5 | AN18: 104.3 | AO18: 104 | AP18: 103.9 | AQ18: 104.5 | AR18: 104.4 | AS18: 104.3 | AT18: 104.8 | AU18: 105 | AV18: 105.4 | AW18: 105.3 | AX18: 106.2 | AY18: 106.7 | AZ18: 109.1 | BA18: 110 | BB18: 110.1
A19: TOL.9 - Gallerie e opere d'arte nel sottosuolo realizzate con metodo tradizionale | B19: 91 | C19: 91.5 | D19: 100.1 | E19: 103.5 | F19: 103.8 | G19: 102 | H19: 102.2 | I19: 103 | J19: 103.2 | K19: 100.8 | L19: 99.9 | M19: 99 | N19: 97.6 | O19: 96.4 | P19: 95.5 | Q19: 95.4 | R19: 93.7 | S19: 92.9 | T19: 92.9 | U19: 93.1 | V19: 92.4 | W19: 91.8 | X19: 91.5 | Y19: 92.1 | Z19: 91.6 | AA19: 91.5 | AB19: 91.2 | AC19: 90.7 | AD19: 90.7 | AE19: 91.1 | AF19: 91.4 | AG19: 91.4 | AH19: 90.6 | AI19: 90.3 | AJ19: 90.8 | AK19: 91.4 | AL19: 92.7 | AM19: 93.8 | AN19: 92.5 | AO19: 92.2 | AP19: 91.1 | AQ19: 91.1 | AR19: 91.1 | AS19: 91.6 | AT19: 91.2 | AU19: 90.7 | AV19: 91.9 | AW19: 91.7 | AX19: 92.3 | AY19: 92.9 | AZ19: 97.1 | BA19: 99.3 | BB19: 99.4
A20: TOL.10 - Gallerie e opere d'arte nel sottosuolo realizzate con metodo meccanizzato | B20: 92.1 | C20: 91.7 | D20: 99.7 | E20: 102 | F20: 101.5 | G20: 100 | H20: 102.3 | I20: 105.2 | J20: 104.8 | K20: 100.1 | L20: 99.8 | M20: 100.6 | N20: 98.4 | O20: 97.1 | P20: 96 | Q20: 95.9 | R20: 94 | S20: 93.5 | T20: 93.4 | U20: 93.6 | V20: 92.6 | W20: 92.5 | X20: 92.5 | Y20: 93.1 | Z20: 91.8 | AA20: 91.7 | AB20: 92 | AC20: 90.9 | AD20: 91 | AE20: 91.8 | AF20: 91.8 | AG20: 92.1 | AH20: 91.1 | AI20: 90.6 | AJ20: 92 | AK20: 92.7 | AL20: 94.1 | AM20: 95.1 | AN20: 92.7 | AO20: 92.1 | AP20: 90.8 | AQ20: 91.6 | AR20: 91.5 | AS20: 92.2 | AT20: 91.8 | AU20: 91.3 | AV20: 92.9 | AW20: 92.7 | AX20: 93.7 | AY20: 93.5 | AZ20: 96.8 | BA20: 98.6 | BB20: 99
A21: TOL.11 - Acquedotti, gasdotti, opere di irrigazione e fognature | B21: 92 | C21: 93.3 | D21: 99 | E21: 100.2 | F21: 100.8 | G21: 101.6 | H21: 102.3 | I21: 102.9 | J21: 102.8 | K21: 102.1 | L21: 102 | M21: 101.2 | N21: 101 | O21: 100.6 | P21: 99.8 | Q21: 99.5 | R21: 98.3 | S21: 98.4 | T21: 98.8 | U21: 99.4 | V21: 99.4 | W21: 99.1 | X21: 98.7 | Y21: 98.6 | Z21: 98.6 | AA21: 98.7 | AB21: 98.6 | AC21: 98.6 | AD21: 98.4 | AE21: 98.9 | AF21: 99.2 | AG21: 99.1 | AH21: 98.4 | AI21: 98.3 | AJ21: 98.5 | AK21: 98.9 | AL21: 100 | AM21: 101.3 | AN21: 100.3 | AO21: 99.9 | AP21: 99.2 | AQ21: 99.4 | AR21: 99.6 | AS21: 99.8 | AT21: 99.7 | AU21: 99.5 | AV21: 100.5 | AW21: 100.3 | AX21: 100.7 | AY21: 101 | AZ21: 105.8 | BA21: 108.2 | BB21: 108.2
A22: TOL.12 - Opere marittime e lavori di dragaggio, opere fluviali e di difesa del suolo | B22: 89.1 | C22: 90.7 | D22: 103.2 | E22: 107.3 | F22: 106.6 | G22: 105.8 | H22: 102.4 | I22: 100 | J22: 100.7 | K22: 100.6 | L22: 98.8 | M22: 94.8 | N22: 95.9 | O22: 95.5 | P22: 94.8 | Q22: 94.6 | R22: 92.9 | S22: 92.3 | T22: 91.9 | U22: 93.4 | V22: 93.7 | W22: 92.8 | X22: 91.9 | Y22: 91.5 | Z22: 92.1 | AA22: 92.9 | AB22: 92.7 | AC22: 92.3 | AD22: 91.5 | AE22: 91.5 | AF22: 91.8 | AG22: 91.2 | AH22: 90.4 | AI22: 89.7 | AJ22: 89.8 | AK22: 90.2 | AL22: 91.6 | AM22: 91.9 | AN22: 91 | AO22: 90.1 | AP22: 89.3 | AQ22: 89.4 | AR22: 89.5 | AS22: 89.2 | AT22: 89.1 | AU22: 88.7 | AV22: 90.4 | AW22: 90.3 | AX22: 91.4 | AY22: 92.4 | AZ22: 98.4 | BA22: 102 | BB22: 100.2
A23: TOL.13 - Impianti per la produzione, trasformazione e distribuzione di energia elettrica in alta e media tensione per la trazione elettrica e l'illuminazione pubblica | B23: 95.2 | C23: 96.2 | D23: 99.4 | E23: 99.5 | F23: 99.8 | G23: 101.4 | H23: 101.8 | I23: 101.6 | J23: 101.7 | K23: 101.4 | L23: 101.3 | M23: 100.8 | N23: 101.3 | O23: 101.5 | P23: 101.2 | Q23: 101.6 | R23: 100.9 | S23: 102.6 | T23: 103.4 | U23: 104 | V23: 104.1 | W23: 104 | X23: 103.6 | Y23: 103.2 | Z23: 103.6 | AA23: 103.7 | AB23: 103.8 | AC23: 103.9 | AD23: 103.8 | AE23: 105.6 | AF23: 105.5 | AG23: 105.4 | AH23: 104.8 | AI23: 105.1 | AJ23: 105.1 | AK23: 105.4 | AL23: 105.7 | AM23: 105.9 | AN23: 105.3 | AO23: 105.5 | AP23: 104.9 | AQ23: 105.6 | AR23: 105.6 | AS23: 105.3 | AT23: 105.4 | AU23: 105.6 | AV23: 106 | AW23: 106.1 | AX23: 106.1 | AY23: 106.5 | AZ23: 109.2 | BA23: 110.4 | BB23: 110.3
A24: TOL.14 - Impianti elettrici, tecnologici, radiotelefonici e antintrusione | B24: 96.4 | C24: 97.1 | D24: 99 | E24: 99 | F24: 99.3 | G24: 100.4 | H24: 101.6 | I24: 102.8 | J24: 102.5 | K24: 100 | L24: 100.5 | M24: 101.5 | N24: 101.1 | O24: 100.6 | P24: 101 | Q24: 101.9 | R24: 100.6 | S24: 102.2 | T24: 102.1 | U24: 101.9 | V24: 102.2 | W24: 103 | X24: 102.4 | Y24: 103 | Z24: 102.5 | AA24: 101.9 | AB24: 102.1 | AC24: 101.9 | AD24: 101.6 | AE24: 103.6 | AF24: 103.7 | AG24: 103.8 | AH24: 103.8 | AI24: 103.9 | AJ24: 103.7 | AK24: 104 | AL24: 104.4 | AM24: 104.5 | AN24: 103.8 | AO24: 103.8 | AP24: 103.3 | AQ24: 104.3 | AR24: 103.7 | AS24: 103.8 | AT24: 103.4 | AU24: 103.7 | AV24: 103.8 | AW24: 104.2 | AX24: 104.4 | AY24: 104.1 | AZ24: 106 | BA24: 106.7 | BB24: 107.1
A25: TOL.15 - Impianti meccanici, termici, di condizionamento, idrico sanitari e trasportatori | B25: 95.8 | C25: 95.9 | D25: 97.9 | E25: 98.7 | F25: 99.5 | G25: 100.6 | H25: 101.4 | I25: 102.8 | J25: 102.6 | K25: 101.3 | L25: 101.6 | M25: 101.9 | N25: 101.3 | O25: 100.7 | P25: 100.8 | Q25: 101 | R25: 100.8 | S25: 102.7 | T25: 102.9 | U25: 102.7 | V25: 102.2 | W25: 103 | X25: 102.5 | Y25: 101.8 | Z25: 101.9 | AA25: 101.7 | AB25: 101.4 | AC25: 101.7 | AD25: 102 | AE25: 104.3 | AF25: 104.5 | AG25: 104.3 | AH25: 104.1 | AI25: 103.9 | AJ25: 104.3 | AK25: 104.3 | AL25: 104.7 | AM25: 104.7 | AN25: 104.2 | AO25: 104 | AP25: 103.5 | AQ25: 104.1 | AR25: 104.1 | AS25: 103.5 | AT25: 103.4 | AU25: 103.7 | AV25: 103.6 | AW25: 104 | AX25: 104.5 | AY25: 104.6 | AZ25: 105.5 | BA25: 105.5 | BB25: 106.7
A26: TOL.16 - Impianti di potabilizzazione e depurazione | B26: 93.9 | C26: 94.8 | D26: 98 | E26: 97.9 | F26: 98.4 | G26: 100.1 | H26: 102.4 | I26: 103.7 | J26: 103.7 | K26: 102.2 | L26: 102.4 | M26: 102.5 | N26: 101.6 | O26: 101.1 | P26: 100.7 | Q26: 100.8 | R26: 100.6 | S26: 102.5 | T26: 101.8 | U26: 102.6 | V26: 101.2 | W26: 101.8 | X26: 101 | Y26: 99.8 | Z26: 99.2 | AA26: 99.3 | AB26: 100 | AC26: 100.1 | AD26: 99.9 | AE26: 101.8 | AF26: 102 | AG26: 101.8 | AH26: 101.1 | AI26: 101 | AJ26: 101.4 | AK26: 101.8 | AL26: 103.2 | AM26: 103.5 | AN26: 102.8 | AO26: 102.3 | AP26: 102.2 | AQ26: 103.4 | AR26: 103.1 | AS26: 102.5 | AT26: 102.5 | AU26: 102.7 | AV26: 103.2 | AW26: 103 | AX26: 103.5 | AY26: 103.6 | AZ26: 106.3 | BA26: 106.7 | BB26: 107.6
A27: TOL.17 - Impianti di segnalamento, sicurezza del traffico e telecomunicazioni | B27: 97.3 | C27: 97.8 | D27: 99.5 | E27: 100 | F27: 100.5 | G27: 100.6 | H27: 100.9 | I27: 100.3 | J27: 101.2 | K27: 100.7 | L27: 100.4 | M27: 100.8 | N27: 101.2 | O27: 102 | P27: 102.3 | Q27: 101.8 | R27: 101.5 | S27: 103.4 | T27: 103.1 | U27: 103.2 | V27: 103.2 | W27: 102.9 | X27: 102.6 | Y27: 102.6 | Z27: 102.4 | AA27: 102.9 | AB27: 102.7 | AC27: 103.3 | AD27: 103.4 | AE27: 106.3 | AF27: 106.4 | AG27: 106.1 | AH27: 105.9 | AI27: 106.5 | AJ27: 106.4 | AK27: 106.6 | AL27: 106.7 | AM27: 106.1 | AN27: 106 | AO27: 106.5 | AP27: 105.8 | AQ27: 106.5 | AR27: 106.3 | AS27: 106.2 | AT27: 105.6 | AU27: 105.8 | AV27: 106.2 | AW27: 107.6 | AX27: 107.9 | AY27: 108.4 | AZ27: 109.1 | BA27: 108.4 | BB27: 109.6
A28: TOL.18 - Armamento ferroviario | B28: 91.9 | C28: 92.8 | D28: 100.4 | E28: 99.7 | F28: 100.2 | G28: 104.1 | H28: 103.5 | I28: 101.2 | J28: 101.3 | K28: 103.1 | L28: 102.5 | M28: 99.3 | N28: 100.3 | O28: 99.6 | P28: 98.9 | Q28: 98.4 | R28: 96.7 | S28: 96.7 | T28: 97.7 | U28: 100.2 | V28: 101.1 | W28: 101.1 | X28: 99.8 | Y28: 98.6 | Z28: 98.9 | AA28: 100.9 | AB28: 101.4 | AC28: 100.5 | AD28: 98.6 | AE28: 97.9 | AF28: 98.8 | AG28: 97.8 | AH28: 96.9 | AI28: 96.8 | AJ28: 98 | AK28: 98.4 | AL28: 100.4 | AM28: 101.3 | AN28: 99.5 | AO28: 98.1 | AP28: 97.3 | AQ28: 98.9 | AR28: 99.1 | AS28: 98.4 | AT28: 98.8 | AU28: 98.4 | AV28: 99.9 | AW28: 99.2 | AX28: 99.1 | AY28: 99.7 | AZ28: 107.6 | BA28: 112 | BB28: 109.7
A29: TOL.19 - Opere di fondazione speciale, indagini geologiche e geotecniche | B29: 90.3 | C29: 91.5 | D29: 98.5 | E29: 99.7 | F29: 102 | G29: 101.9 | H29: 103.5 | I29: 103.8 | J29: 103.2 | K29: 101.8 | L29: 102.4 | M29: 101.3 | N29: 100.4 | O29: 99.6 | P29: 98.5 | Q29: 98.2 | R29: 96.5 | S29: 96.2 | T29: 96.5 | U29: 97.4 | V29: 97.5 | W29: 97 | X29: 96 | Y29: 95.9 | Z29: 95.6 | AA29: 95.9 | AB29: 95.8 | AC29: 95.7 | AD29: 95.4 | AE29: 95.4 | AF29: 96.1 | AG29: 95.9 | AH29: 94.7 | AI29: 94.5 | AJ29: 95.1 | AK29: 95.4 | AL29: 96.6 | AM29: 98 | AN29: 96.6 | AO29: 96.2 | AP29: 95.1 | AQ29: 95.6 | AR29: 95.5 | AS29: 95.4 | AT29: 95.3 | AU29: 94.9 | AV29: 96.3 | AW29: 95.7 | AX29: 96.8 | AY29: 97.6 | AZ29: 103.7 | BA29: 106 | BB29: 105.4
A30: TOL.20 - Conferimento rifiuti a impianto di smaltimento o recupero | B30: 99.5 | C30: 99.5 | D30: 99.5 | E30: 99.8 | F30: 99.8 | G30: 99.8 | H30: 100.2 | I30: 100.2 | J30: 100.2 | K30: 100.5 | L30: 100.5 | M30: 100.5 | N30: 102.7 | O30: 102.7 | P30: 102.7 | Q30: 102.5 | R30: 102.5 | S30: 102.5 | T30: 102.4 | U30: 102.4 | V30: 102.4 | W30: 102.6 | X30: 102.6 | Y30: 102.6 | Z30: 104.2 | AA30: 104.2 | AB30: 104.2 | AC30: 104.3 | AD30: 104.3 | AE30: 104.3 | AF30: 104.4 | AG30: 104.4 | AH30: 104.4 | AI30: 104.5 | AJ30: 104.5 | AK30: 104.5 | AL30: 106.7 | AM30: 106.7 | AN30: 106.7 | AO30: 107.1 | AP30: 107.1 | AQ30: 107.1 | AR30: 107.1 | AS30: 107.1 | AT30: 107.2 | AU30: 107.2 | AV30: 107.2 | AW30: 107.2 | AX30: 108 | AY30: 108 | AZ30: 108 | BA30: 109.5 | BB30: 109.5
